bitfinex-derivatives/quotes_ETHF0:USTF0_20250824
["timestamp","ask_amount","ask_price","bid_price","bid_amount"]
[1756003227566,1.48139101,4788.6,4788.5,1.37904729]
[1756003227969,0.88229101,4788.6,4788.5,1.37904729]
[1756003229168,0.88229101,4788.6,4788.5,1.58564729]
[1756003229870,1.39999101,4788.6,4788.5,1.37904729]
[1756003230075,1.03109101,4788.6,4788.5,1.37904729]
[1756003230270,0.49169101,4788.6,4788.5,1.58564729]
[1756003230468,4.15432,4789.3,4789.2,1.093]
[1756003230668,24.21052666,4789.3,4789.2,1.37904729]
[1756003230863,24.21052666,4789.3,4789.2,1.22114729]
[1756003231062,24.44202666,4789.3,4789.2,1.22114729]
[1756003231566,5.25502666,4789.3,4789.2,1.37904729]
[1756003231773,24.44102666,4789.3,4789.2,1.37904729]
[1756003232174,24.02330666,4789.3,4789.2,1.37904729]
[1756003232973,24.02330666,4789.3,4789.2,0.66184729]
[1756003233174,24.02330666,4789.3,4789.2,0.28604729]
[1756003234475,24.44103666,4789.3,4789.2,0.28634498]
[1756003234671,23.83223666,4789.3,4789.2,0.51894498]
[1756003234870,4.64623666,4789.3,4789.2,0.51894498]
[1756003235071,23.83123666,4789.3,4789.2,0.89354498]
[1756003235375,24.44233666,4789.3,4789.2,0.89354498]
[1756003237081,5.25733666,4789.3,4789.2,0.89354498]
[1756003237279,24.44033666,4789.3,4789.2,1.25234498]
[1756003237788,24.44033666,4789.3,4789.2,0.51894498]
[1756003239390,24.44033666,4789.3,4789.2,0.28634498]
[1756003241874,0.41779,4788.6,4788.5,0.41779]
[1756003242074,20.50109,4788.6,4788.5,0.7040765]
[1756003242279,20.73099,4788.6,4788.5,0.7040765]
[1756003242480,20.3122,4788.6,4788.5,1.4700765]
[1756003242781,20.3122,4788.6,4788.5,2.0545765]
[1756003244080,1.1312,4788.6,4788.5,2.0545765]
[1756003244281,19.5597,4788.6,4788.5,1.76829]
[1756003244484,0.3787,4788.9,4788.8,1.76826]
[1756003244687,19.5587,4788.9,4788.8,1.76826]
[1756003245679,1.1312,4788.9,4788.8,1.76826]
[1756003245985,20.3112,4788.9,4788.8,1.76826]
[1756003246879,3.2078,4789.3,4789.2,1.76823]
[1756003246880,0.1458,4789.3,4789.2,1.76823]
[1756003247079,0.1458,4789.5,4789.4,1.76821]
[1756003249083,0.2329,4789.6,4789.4,1.76821]
[1756003249287,3.5865,4789.8,4789.7,1.76819]
[1756003249581,0.1458,4790.1,4790.0,0.41765]
[1756003249780,0.6086,4790.1,4790.0,1.76815]
[1756003250281,1.1312,4790.1,4790.0,1.3505]
[1756003250681,0.9829,4790.1,4790.0,1.3505]
[1756003251588,0.3787,4790.1,4790.0,1.3505]
[1756003251990,0.6086,4790.1,4790.0,1.3505]
[1756003253192,20.1599,4790.1,4790.0,1.3505]
[1756003255195,20.3082,4790.1,4790.0,1.3505]
[1756003256592,1.1312,4789.5,4789.4,4.15891]
[1756003256801,20.3062,4789.5,4789.4,4.43947744]
[1756003257196,20.3062,4789.5,4789.4,5.03087744]
[1756003257897,20.3062,4789.5,4789.4,5.25657744]
[1756003258787,20.3062,4789.5,4789.4,5.03087744]
[1756003259191,1.1312,4789.5,4789.4,5.25657744]
[1756003259597,0.3787,4789.5,4789.4,5.25657744]
[1756003259792,0.1458,4789.8,4789.7,1.76818]
[1756003260000,0.1458,4789.8,4789.7,2.04874744]
[1756003260595,19.6348,4790.1,4790.0,0.41765]
[1756003260905,19.7806,4790.1,4790.0,1.76815]
[1756003261204,0.6086,4790.1,4790.0,1.76815]
[1756003261404,0.6086,4790.1,4790.0,1.3505]
[1756003262007,0.9829,4790.1,4790.0,1.3505]
[1756003262208,1.1312,4790.1,4790.0,1.3505]
[1756003262408,1.1312,4790.1,4790.0,1.63101181]
[1756003263107,1.1312,4790.1,4790.0,1.63101371]
[1756003263601,0.9829,4790.1,4790.0,1.63101023]
[1756003263911,0.1458,4790.1,4790.0,1.63100543]
[1756003264904,0.6112,4790.1,4790.0,1.63100543]
[1756003265309,0.3829,4790.1,4790.0,1.63100543]
[1756003266406,0.3829,4790.1,4790.0,1.63091847]
[1756003271116,0.1458,4790.1,4790.0,1.63091847]
[1756003272711,0.3829,4790.1,4790.0,1.63091847]
[1756003272914,0.3829,4790.1,4790.0,1.63066854]
[1756003273720,0.6112,4790.1,4790.0,1.63066854]
[1756003274119,1.1419,4790.1,4790.0,1.63066854]
[1756003276012,0.6112,4790.1,4790.0,1.63066854]
[1756003276321,0.3829,4790.1,4790.0,1.82428387]
[1756003276517,0.1,4790.2,4790.0,1.82428387]
[1756003276518,0.1,4790.2,4790.1,0.41764]
[1756003276713,0.1,4790.2,4790.1,2.01748119]
[1756003277114,0.1,4790.2,4790.1,2.21073447]
[1756003278512,3.2078,4791.5,4791.2,0.41755]
[1756003278712,1.2565,4791.3,4791.2,1.73685]
[1756003278913,1.74912648,4791.3,4791.2,2.01735593]
[1756003279111,1.74912648,4791.3,4791.2,1.36710593]
[1756003279522,1.74912648,4791.3,4791.2,0.28050593]
[1756003282217,5.74912648,4791.3,4791.2,0.28050593]
[1756003282418,1.3456,4790.6,4790.5,3.2078]
[1756003282619,1.6341,4790.6,4790.5,3.2078]
[1756003284215,1.6341,4790.6,4790.5,3.4405]
[1756003284414,1.6341,4790.6,4790.5,3.6622]
[1756003284810,1.6341,4790.6,4790.5,3.4405]
[1756003285224,1.2165,4790.6,4790.5,3.6622]
[1756003285421,1.2165,4790.6,4790.5,4.1838]
[1756003285623,1.2165,4790.6,4790.5,4.5271]
[1756003287021,0.9794,4790.6,4790.5,4.5271]
[1756003288529,20.1394,4790.6,4790.5,4.5271]
[1756003289526,20.6322422,4790.6,4790.5,4.5271]
[1756003292427,20.8693422,4790.6,4790.5,4.5271]
[1756003292726,20.8693422,4790.6,4790.5,3.6622]
[1756003294325,20.8693422,4790.6,4790.5,3.92275529]
[1756003295522,20.8693422,4790.6,4790.5,3.70105529]
[1756003295727,20.8693422,4790.6,4790.5,3.46835529]
[1756003298228,20.8693422,4790.6,4790.5,3.69395529]
[1756003298824,20.8693422,4790.6,4790.5,3.46835529]
[1756003299026,20.8693422,4790.6,4790.5,3.69402318]
[1756003299224,20.8693422,4790.6,4790.5,3.93312318]
[1756003300824,20.6322422,4790.6,4790.5,4.79722318]
[1756003301030,20.4788422,4790.6,4790.5,4.79722318]
[1756003301221,20.6264422,4790.6,4790.5,4.79722318]
[1756003301432,1.4724422,4790.6,4790.5,4.79722318]
[1756003301624,20.6264422,4790.6,4790.5,4.79722318]
[1756003302331,20.6264422,4790.6,4790.5,4.5366]
[1756003304537,20.6264422,4790.6,4790.5,4.79709584]
[1756003305628,20.8594422,4790.6,4790.5,4.79709584]
[1756003305826,1.7054422,4790.6,4790.5,4.79709584]
[1756003306028,20.8574422,4790.6,4790.5,4.79709584]
[1756003306226,20.6244422,4790.6,4790.5,4.79709584]
[1756003306432,20.8574422,4790.6,4790.5,4.79709584]
[1756003307130,20.1598422,4790.6,4790.5,4.79709584]
[1756003307630,20.3194422,4790.6,4790.5,4.79709584]
[1756003307926,20.8464422,4790.6,4790.5,4.79709584]
[1756003309434,20.8464422,4790.6,4790.5,4.45419584]
[1756003310831,20.8464422,4790.6,4789.4,1.04427]
[1756003310832,0.8876,4789.7,4789.6,0.2256]
[1756003311028,20.4953422,4789.7,4789.6,1.3288]
[1756003312530,1.3463422,4789.7,4789.6,1.3288]
[1756003312731,1.3804422,4789.7,4789.6,0.2256]
[1756003313632,1.3463422,4789.7,4789.6,0.6204]
[1756003313833,1.3463422,4789.7,4789.6,1.3288]
[1756003314234,1.3463422,4789.7,4789.6,0.9859]
[1756003314637,1.3463422,4789.7,4789.6,0.6204]
[1756003316237,1.3804422,4789.7,4789.6,0.2256]
[1756003316439,0.85472,4789.4,4789.3,0.2256]
[1756003316639,0.437,4789.1,4789.0,0.64335]
[1756003316938,0.8535,4789.1,4789.0,1.03815]
[1756003317139,0.8535,4789.1,4789.0,1.74655]
[1756003317540,0.5846,4789.5,4789.4,0.93891]
[1756003317735,0.5846,4789.5,4789.4,1.74651]
[1756003317941,0.5846,4789.5,4789.4,1.3288]
[1756003318133,0.8535,4789.5,4789.4,1.3288]
[1756003318333,0.8535,4789.5,4789.4,0.7689]
[1756003318834,0.8535,4789.5,4789.4,0.9859]
[1756003319140,0.8535,4789.5,4789.4,1.3288]
[1756003321534,0.1476,4790.9,4790.3,1.3288]
[1756003321734,0.4382,4790.9,4790.8,1.3288]
[1756003321933,1.34565831,4790.9,4790.8,1.3288]
[1756003322139,1.34565831,4790.9,4790.8,0.9859]
[1756003322336,1.30522,4790.5,4790.4,0.2256]
[1756003322642,0.437,4789.9,4789.8,0.2256]
[1756003322940,0.437,4789.9,4789.8,0.2622984]
[1756003323136,0.8876,4789.9,4789.8,0.2622984]
[1756003323338,0.8876,4789.9,4789.8,0.4878984]
[1756003324337,0.8876,4789.9,4789.8,0.48791287]
[1756003324639,0.8876,4789.9,4789.8,0.26231287]
[1756003325235,0.8385,4789.6,4789.5,3.2078]
[1756003325541,1.2901,4789.6,4789.5,0.26225371]
[1756003325733,0.83853,4789.2,4789.1,0.2401]
[1756003326038,1.29013,4789.2,4789.1,0.2623227]
[1756003326235,1.29013,4789.2,4788.7,0.2401]
[1756003326236,0.82137,4788.8,4788.7,0.2401]
[1756003327236,0.3692,4788.8,4788.7,1.53248]
[1756003327441,3.2078,4789.4,4789.1,0.5394]
[1756003327442,0.77994,4789.2,4789.1,0.5394]
[1756003327738,0.85411245,4789.2,4789.1,1.3377]
[1756003327939,3.5658,4789.4,4789.3,0.5394]
[1756003328136,0.3692,4789.4,4789.3,1.3377]
[1756003329143,0.2031,4789.4,4789.3,1.3377]
[1756003329536,0.2101,4789.4,4789.3,1.3377]
[1756003329739,0.358,4789.4,4789.3,1.3377]
[1756003329942,0.3692,4789.4,4789.3,1.3377]
[1756003331844,0.1481,4789.4,4789.3,1.3377]
[1756003332040,0.76871,4789.5,4789.4,1.3377]
[1756003332348,0.77991,4789.5,4789.4,1.3377]
[1756003332745,0.78691,4789.5,4789.4,1.3377]
[1756003332947,3.2078,4789.9,4789.4,0.95711]
[1756003333145,0.77989,4789.7,4789.6,0.5394]
[1756003333444,0.77989,4789.7,4789.6,1.3377]
[1756003333646,0.78689,4789.7,4789.6,1.3377]
[1756003333849,0.007,4789.5,4788.5,0.223]
[1756003334148,0.41775,4789.1,4789.0,1.3377]
[1756003334346,0.42475,4789.1,4789.0,1.3377]
[1756003334837,0.055,4789.2,4789.1,0.1525]
[1756003335042,0.78693,4789.2,4789.1,0.7795]
[1756003335242,0.78693,4789.2,4789.1,0.6217]
[1756003335543,0.82133,4789.2,4789.1,0.2401]
[1756003336636,0.78693,4789.2,4789.1,0.7795]
[1756003336850,0.3692,4789.2,4789.1,1.3377]
[1756003337643,0.1481,4789.2,4789.1,1.3377]
[1756003337838,0.41773,4789.3,4789.2,0.95713]
[1756003338050,0.41773,4789.3,4789.2,1.75543]
[1756003338246,0.77571,4789.5,4789.4,1.3377]
[1756003338547,1.27910322,4789.5,4789.4,1.3377]
[1756003339144,1.12000322,4789.5,4789.4,1.3377]
[1756003339345,1.27910322,4789.5,4789.4,1.3377]
[1756003341052,1.31350322,4789.5,4789.4,0.2401]
[1756003341549,4.52130322,4789.5,4789.4,0.2401]
[1756003341749,4.48690322,4789.5,4789.4,0.2401]
[1756003341949,3.92129322,4789.5,4789.4,1.3377]
[1756003342139,4.06919322,4789.5,4789.4,1.3377]
[1756003343146,0.86139322,4789.5,4789.4,1.3377]
[1756003344351,0.86139322,4789.5,4789.4,1.6010122]
[1756003346148,0.54719322,4789.5,4789.4,1.6010122]
[1756003346452,0.49919322,4789.5,4789.4,1.6010122]
[1756003347346,0.79519322,4789.5,4789.4,1.6010122]
[1756003347857,0.055,4789.9,4789.8,1.75538]
[1756003348046,0.56587537,4789.9,4789.8,1.3377]
[1756003348351,0.86187537,4789.9,4789.8,1.3377]
[1756003351051,0.49267537,4789.9,4789.8,1.3377]
[1756003351254,0.49267537,4789.9,4789.8,1.60088668]
[1756003352051,0.85097537,4789.9,4789.8,1.60088668]
[1756003352457,0.85097537,4789.9,4789.8,1.3377]
[1756003352659,0.86237537,4789.9,4789.8,1.3377]
[1756003353952,0.70297537,4789.9,4789.8,1.3377]
[1756003354550,0.86207537,4789.9,4789.8,1.3377]
[1756003356961,0.49267537,4789.9,4789.8,1.3377]
[1756003357359,0.49267537,4789.9,4789.8,1.60112859]
[1756003358260,0.87247537,4789.9,4789.8,1.60111904]
[1756003358763,0.87247537,4789.9,4789.8,1.3377]
[1756003360669,0.71337537,4789.9,4789.8,1.3377]
[1756003362168,0.49267537,4789.9,4789.8,1.3377]
[1756003362369,0.49267537,4789.9,4789.8,1.60108306]
[1756003362769,0.87247537,4789.9,4789.8,1.60108306]
[1756003363866,0.49267537,4789.9,4789.8,1.60108306]
[1756003364369,0.49267537,4789.9,4789.8,1.60108257]
[1756003364563,0.86127537,4789.9,4789.8,1.60108257]
[1756003366370,0.71337537,4789.9,4789.8,1.60108257]
[1756003367565,0.65837537,4789.9,4789.8,1.60108257]
[1756003367761,0.80627537,4789.9,4789.8,1.60108257]
[1756003367970,0.65137537,4789.9,4789.8,1.60108257]
[1756003368271,0.49267537,4789.9,4789.8,1.60108257]
[1756003368871,1.04393,4791.2,4789.8,1.60108257]
[1756003368872,0.1479,4791.0,4790.7,0.4176]
[1756003369174,3.5647,4791.1,4790.7,0.4176]
[1756003369175,4.67877,4791.1,4791.0,1.3354]
[1756003369372,4.91677,4791.1,4791.0,1.3354]
[1756003369761,4.67877,4791.1,4791.0,1.3354]
[1756003370874,1.709,4790.8,4790.7,1.3354]
[1756003371077,1.709,4790.8,4790.7,1.60970957]
[1756003371267,1.709,4790.8,4790.7,1.60964011]
[1756003371771,1.0534,4790.8,4790.7,1.60964011]
[1756003371973,3.2078,4791.1,4790.9,1.1038]
[1756003372174,3.2078,4791.1,4791.0,1.60961925]
[1756003372175,0.9055,4791.1,4791.0,1.60961925]
[1756003372470,1.2914,4791.1,4791.0,1.3354]
[1756003372972,1.0534,4791.1,4791.0,1.3354]
[1756003378074,0.7468,4791.1,4791.0,1.3354]
[1756003378473,1.0534,4791.1,4791.0,1.3354]
[1756003379275,0.9055,4791.1,4791.0,1.3354]
[1756003379673,0.3859,4791.4,4791.1,0.41757]
[1756003379674,0.1479,4791.4,4791.1,0.41757]
[1756003379983,1.31225,4791.4,4791.3,1.3354]
[1756003380173,1.16435,4791.4,4791.3,1.3354]
[1756003380479,1.31225,4791.4,4791.3,1.3354]
[1756003380774,1.80209514,4791.4,4791.3,1.3354]
[1756003380974,1.80209378,4791.4,4791.3,1.3354]
[1756003381277,1.96079378,4791.4,4791.3,1.3354]
[1756003382078,1.54324378,4791.4,4791.3,1.3354]
[1756003382778,1.8734065,4793.0,4792.0,0.3037]
[1756003382779,0.93339,4792.1,4792.0,0.3037]
[1756003382969,0.93339,4792.1,4792.0,1.3354]
[1756003382970,1.65402359,4792.1,4792.0,1.3354]
[1756003383168,1.23653359,4792.1,4792.0,1.3354]
[1756003383778,1.39523359,4792.1,4792.0,1.3354]
[1756003383977,1.76343359,4792.1,4792.0,0.763]
[1756003385070,1.76343359,4792.1,4792.0,1.3229]
[1756003385676,1.39523359,4792.1,4792.0,1.3229]
[1756003386578,1.65661,4791.8,4791.7,0.4578]
[1756003386770,0.5291,4791.4,4791.3,0.9885]
[1756003386972,1.2391,4791.4,4791.3,1.32]
[1756003387174,1.2391,4791.4,4791.3,0.9885]
[1756003387874,1.2391,4791.4,4791.3,1.32]
[1756003388182,1.0197,4791.4,4791.3,1.32]
[1756003388575,1.2391,4791.4,4791.3,1.32]
[1756003390079,1.0197,4791.4,4791.3,1.32]
[1756003390881,1.2391,4791.4,4791.3,1.32]
[1756003393681,0.1504,4790.6,4790.5,0.231]
[1756003393880,1.65672,4790.6,4790.5,0.2268]
[1756003394075,2.14626477,4790.6,4790.5,0.2268]
[1756003394272,1.65673,4790.4,4790.3,0.2268]
[1756003394477,0.94675,4790.2,4790.1,0.231]
[1756003394684,2.14629477,4790.2,4790.1,0.231]
[1756003394884,2.14629477,4790.2,4790.1,0.4578]
[1756003395083,2.14629477,4790.2,4790.1,1.32]
[1756003395785,2.14629477,4790.2,4790.1,0.9885]
[1756003396182,0.94678,4789.9,4789.8,0.6086]
[1756003396488,0.94678,4789.9,4789.8,0.7601]
[1756003396489,2.14664771,4789.9,4789.8,0.7601]
[1756003396675,2.14664771,4789.9,4789.8,1.32]
[1756003399184,2.14664771,4789.9,4789.8,0.9885]
[1756003399490,2.14664771,4789.9,4789.8,0.4578]
[1756003399883,2.14664771,4789.9,4789.8,0.7601]
[1756003400381,2.14664771,4789.9,4789.8,1.32]
[1756003402792,0.48986771,4789.9,4789.8,1.73769]
[1756003403991,1.05436771,4789.9,4789.8,1.32]
[1756003404192,1.21036771,4789.9,4789.8,1.32]
[1756003404395,1.72896771,4789.9,4789.8,1.32]
[1756003405195,1.50956771,4789.9,4789.8,1.32]
[1756003405387,1.72896771,4789.9,4789.8,1.32]
[1756003405694,1.72896771,4789.9,4789.8,0.9885]
[1756003405989,1.72896771,4789.9,4789.8,1.32]
[1756003406387,1.72896771,4789.9,4789.8,0.7601]
[1756003406588,4.93676771,4789.9,4789.8,0.7601]
[1756003406891,4.93676771,4789.9,4789.8,1.32]
[1756003408003,0.5291,4788.7,4788.6,0.4578]
[1756003408296,4.4469,4788.7,4788.6,0.7601]
[1756003408487,4.86468,4788.7,4788.6,0.7601]
[1756003408689,4.86468,4788.7,4788.6,0.4578]
[1756003408891,1.65692,4788.3,4788.2,1.0916]
[1756003409091,1.65692,4788.3,4788.2,0.9885]
[1756003409291,1.65692,4788.3,4787.4,3.62569]
[1756003409292,1.65695,4787.9,4787.8,1.32]
[1756003409894,1.65695,4787.9,4787.8,0.7601]
[1756003410098,1.04452,4788.5,4787.4,3.5393]
[1756003410099,1.65699,4787.5,4787.4,3.9695]
[1756003410395,1.65699,4787.5,4787.4,3.3586]
[1756003410799,1.65699,4787.5,4787.4,3.5854]
[1756003410996,1.65699,4787.5,4787.4,4.5278]
[1756003411198,1.28879,4787.5,4787.4,4.5278]
[1756003411695,0.156,4787.9,4787.8,1.32]
[1756003411991,3.356,4788.2,4788.1,0.9885]
[1756003411992,3.5865,4788.2,4788.1,0.9885]
[1756003412189,4.00433,4788.2,4788.1,1.32]
[1756003412588,4.49653,4788.2,4788.1,1.32]
[1756003412798,4.64473,4788.2,4788.1,1.32]
[1756003413698,4.87893,4788.2,4788.1,1.32]
[1756003413894,4.87893,4788.2,4788.1,0.9885]
[1756003414197,4.87893,4788.2,4788.1,1.3333]
[1756003414491,1.67113,4788.2,4788.1,1.3333]
[1756003417595,0.7242,4788.2,4787.6,0.6504]
[1756003417897,0.94369,4787.5,4787.4,3.5134]
[1756003418198,1.66059,4787.5,4787.4,4.5495]
[1756003418800,1.2427,4787.5,4787.4,4.5495]
[1756003419001,1.0085,4787.5,4787.4,4.5495]
[1756003419196,0.8604,4787.5,4787.4,4.5495]
[1756003421698,1.13036,4787.8,4787.7,0.3875]
[1756003421899,1.13036,4787.8,4787.7,1.3417]
[1756003422493,0.2228,4787.8,4787.7,1.3417]
[1756003423606,0.8604,4787.8,4787.7,1.3417]
[1756003423906,1.0085,4787.8,4787.7,1.3417]
[1756003424303,1.2427,4787.8,4787.7,0.766]
[1756003424804,1.2427,4787.8,4787.7,1.3417]
[1756003426806,1.0085,4787.8,4787.7,1.3417]
[1756003428004,0.7125,4787.8,4787.7,1.3417]
[1756003428310,0.2228,4788.1,4788.0,1.75954]
[1756003428508,0.3346,4788.4,4788.0,1.75954]
[1756003428710,0.82330975,4788.3,4788.1,0.8052]
[1756003428908,0.48870975,4788.2,4788.1,1.3417]
[1756003429506,0.4178,4788.5,4788.4,0.5365]
[1756003429714,0.90660586,4788.5,4788.4,1.3417]
[1756003430313,0.48880586,4788.5,4788.4,1.3417]
[1756003430614,3.62558,4788.7,4788.6,1.3417]
[1756003430813,3.69673681,4788.7,4788.6,1.3417]
[1756003432211,1.20143681,4788.7,4788.6,1.3417]
[1756003433014,1.49743681,4788.7,4788.6,1.3417]
[1756003433606,1.34933681,4788.7,4788.6,1.75949]
[1756003433815,0.71173681,4788.7,4788.6,1.75949]
[1756003434016,0.48893681,4788.7,4788.6,1.3417]
[1756003434218,1.20143681,4788.7,4788.6,1.3417]
[1756003436519,0.48893681,4788.7,4788.6,1.3417]
[1756003441626,0.48893681,4788.7,4788.6,1.60764823]
[1756003442619,0.48893681,4788.7,4788.6,1.3417]
[1756003442919,0.4177,4789.6,4789.5,1.3417]
[1756003443124,0.9079884,4789.6,4789.5,1.3417]
[1756003443423,1.6204884,4789.6,4789.5,1.3417]
[1756003443818,1.9160884,4789.6,4789.5,1.3417]
[1756003445014,1.67294,4789.2,4789.1,1.3585]
[1756003445315,0.5316,4789.5,4789.4,0.537]
[1756003445521,1.51964942,4789.5,4789.4,1.3585]
[1756003446227,1.74504942,4789.5,4789.4,1.3585]
[1756003448029,1.67294,4789.1,4789.0,0.7666]
[1756003448230,2.16278942,4789.1,4789.0,0.7666]
[1756003449025,0.96058,4788.8,4788.7,0.5337]
[1756003449228,1.44758,4788.8,4788.7,1.3585]
[1756003449826,1.93724154,4788.8,4788.7,1.3585]
[1756003450024,2.16264154,4788.8,4788.7,1.3585]
[1756003450824,2.16264154,4788.8,4788.7,0.9995]
[1756003451031,2.16264154,4788.8,4788.7,1.3585]
[1756003452524,2.16264154,4788.8,4788.7,0.4625]
[1756003452730,2.16264154,4788.8,4788.7,1.3585]
[1756003452931,1.93724154,4788.8,4788.7,1.3585]
[1756003453331,1.51946154,4788.8,4788.7,1.3585]
[1756003455530,1.673,4788.5,4788.4,0.8215]
[1756003455731,2.16266154,4788.5,4788.4,0.2296]
[1756003455931,0.96062,4788.2,4788.1,0.3886]
[1756003456121,2.16268154,4788.2,4788.1,0.6182]
[1756003456322,2.16268154,4788.2,4787.7,3.2078]
[1756003456522,1.67306,4787.8,4787.7,4.2073]
[1756003456727,2.16272154,4787.8,4787.7,0.7666]
[1756003456934,2.16272154,4787.8,4787.7,0.4625]
[1756003457231,2.16272154,4787.8,4787.7,0.2296]
[1756003457632,0.96068,4787.5,4787.4,0.7666]
[1756003457834,1.67308,4787.5,4787.4,0.7666]
[1756003458327,1.67308,4787.5,4787.4,0.9995]
[1756003458527,1.67308,4787.5,4787.4,1.3585]
[1756003458923,0.8821,4787.5,4787.4,1.3585]
[1756003459130,0.7232,4787.5,4787.4,1.3585]
[1756003459433,1.0298,4787.5,4787.4,1.3585]
[1756003460533,0.487,4787.9,4787.5,0.8215]
[1756003460729,0.3839,4787.9,4787.8,1.3585]
[1756003460936,1.75055436,4787.9,4787.8,1.3585]
[1756003461136,1.52515436,4787.9,4787.8,1.3585]
[1756003461726,1.75055436,4787.9,4787.8,1.3585]
[1756003461929,1.75055436,4787.9,4787.8,0.9995]
[1756003462536,1.75055436,4787.9,4787.8,0.2296]
[1756003462738,0.5428,4787.6,4787.5,0.896]
[1756003463035,1.67308,4787.6,4787.5,0.896]
[1756003463239,1.44768,4787.6,4787.5,1.3585]
[1756003463533,0.75716,4787.9,4787.6,0.8215]
[1756003463734,1.14106,4787.9,4787.8,1.3585]
[1756003463938,1.44766,4787.9,4787.8,1.3585]
[1756003464231,1.67306,4787.9,4787.8,0.9995]
[1756003464635,1.67306,4787.9,4787.8,1.3585]
[1756003465331,1.67306,4787.9,4787.1,3.62571]
[1756003465332,0.96068,4787.6,4787.5,0.7699]
[1756003465536,1.67308,4787.6,4787.5,1.3585]
[1756003468441,1.67308,4787.6,4787.5,0.9995]
[1756003468640,1.67308,4787.6,4787.5,0.4625]
[1756003468944,1.6732,4787.3,4787.2,1.3585]
[1756003471035,1.05385,4786.8,4786.7,1.1256]
[1756003471236,0.96078,4786.4,4786.3,0.896]
[1756003471442,1.67328,4786.4,4786.3,0.896]
[1756003471642,1.67328,4786.4,4786.3,0.7699]
[1756003471942,1.67328,4786.4,4786.3,0.9995]
[1756003472141,1.67328,4786.4,4785.9,3.5668]
[1756003472142,0.2351,4786.0,4785.9,1.3585]
[1756003472344,3.62579,4786.4,4786.3,0.537]
[1756003472844,4.2377,4786.4,4786.3,1.3585]
[1756003473045,3.931,4786.4,4786.3,1.3585]
[1756003473244,4.2377,4786.4,4786.3,1.3585]
[1756003473445,4.0899,4786.4,4786.3,1.3585]
[1756003473744,0.8821,4786.4,4786.3,1.3585]
[1756003475140,1.0302,4786.4,4786.3,1.3585]
[1756003475344,1.2697,4786.4,4786.3,1.3585]
[1756003476945,0.8821,4786.4,4786.3,1.3585]
[1756003478248,3.5426,4787.0,4786.3,0.537]
[1756003478542,3.5426,4787.0,4785.9,3.2286]
[1756003478543,4.49183,4787.0,4786.9,1.3264]
[1756003478746,4.63993,4787.0,4786.9,1.3264]
[1756003479349,4.34173,4787.0,4786.9,1.3264]
[1756003479551,4.00693,4787.0,4786.9,1.3264]
[1756003479746,1.43213,4787.0,4786.9,1.3264]
[1756003480348,0.3812,4787.0,4786.9,1.3264]
[1756003480555,0.2295,4787.0,4786.9,1.3264]
[1756003480748,0.41792,4787.1,4786.9,0.5202]
[1756003480953,0.41792,4787.1,4787.0,1.3264]
[1756003481144,0.75271,4787.3,4787.1,0.8062]
[1756003481349,0.75271,4787.3,4787.2,1.3264]
[1756003481556,1.28401,4787.3,4787.2,1.3264]
[1756003481751,1.67161,4787.3,4787.2,1.3264]
[1756003482344,1.43211,4787.3,4787.2,1.3264]
[1756003482553,1.28401,4787.3,4787.2,1.3264]
[1756003483050,1.43211,4787.3,4787.2,1.3264]
[1756003483259,0.41791,4787.3,4787.2,1.3264]
[1756003484255,1.43211,4787.3,4787.2,1.3264]
[1756003484457,1.67161,4787.3,4787.2,1.3264]
[1756003486652,1.28401,4787.3,4787.2,1.3264]
[1756003486860,1.13391,4787.3,4787.2,1.3264]
[1756003487857,1.62929658,4787.3,4787.2,1.3264]
[1756003490462,1.92749658,4787.3,4787.2,1.3264]
[1756003491553,2.16699658,4787.3,4787.2,1.3264]
[1756003493463,1.92749658,4787.3,4787.2,1.3264]
[1756003496153,0.49538658,4787.3,4787.2,1.3264]
[1756003496359,0.49538658,4787.3,4787.2,5.3472]
[1756003496554,0.41788,4787.6,4787.5,0.8062]
[1756003496865,0.91354753,4787.6,4787.5,1.3264]
[1756003497664,0.49566753,4787.6,4787.5,1.3264]
[1756003497861,0.41787,4787.7,4787.6,0.5685]
[1756003498065,0.41787,4787.7,4787.6,1.3264]
[1756003502069,0.75267,4787.7,4787.6,1.3264]
[1756003502670,1.284,4787.3,4787.2,0.5281]
[1756003502859,1.2537,4787.2,4787.1,0.2377]
[1756003503172,1.67164,4786.9,4786.8,0.5281]
[1756003503359,1.36974566,4786.9,4786.1,3.6258]
[1756003503568,1.2537,4786.4,4786.3,1.3264]
[1756003504769,1.2537,4786.4,4786.3,0.9773]
[1756003507075,1.2537,4786.4,4786.3,1.3271]
[1756003507676,3.2078,4786.8,4786.1,0.2339]
[1756003507677,0.9316,4786.2,4786.1,0.2339]
[1756003507879,0.5465,4785.8,4785.7,0.2339]
[1756003508169,1.2614,4785.8,4785.7,1.3681]
[1756003508776,1.025,4785.8,4785.7,1.3681]
[1756003510178,1.2614,4785.8,4785.7,1.0183]
[1756003510377,1.2614,4785.8,4785.7,0.7799]
[1756003510976,1.2614,4785.8,4785.7,1.3681]
[1756003511377,0.8055,4786.1,4786.0,0.5474]
[1756003511584,1.6794,4786.1,4786.0,0.4709]
[1756003511890,1.6794,4786.1,4786.0,0.2339]
[1756003512181,1.67943,4785.8,4785.7,0.4709]
[1756003512581,1.67943,4785.8,4785.7,0.621]
[1756003512782,1.67943,4785.8,4785.7,0.7799]
[1756003512984,1.67943,4785.8,4785.7,1.0183]
[1756003514482,1.67943,4785.8,4785.7,1.3681]
[1756003514681,1.67943,4785.8,4785.7,0.7799]
[1756003514986,1.2606,4785.5,4785.4,0.8972]
[1756003515484,1.0242,4785.5,4785.4,1.3681]
[1756003517782,0.8763,4785.5,4785.4,1.3681]
[1756003517976,0.7173,4785.5,4785.4,1.3681]
[1756003518185,1.2606,4785.5,4785.4,1.3681]
[1756003518385,1.2606,4785.5,4785.4,0.384]